bitfinex-derivatives/quotes_SOLF0:USTF0_20230904
["timestamp","ask_amount","ask_price","bid_price","bid_amount"]
[1693834462550,109.77,19.598,19.586,109.77]
[1693834477862,40.95967329,19.602,19.585,0.45454546]
[1693834478069,98.9,19.597,19.59,98.9]
[1693834478671,15.31,19.596,19.59,98.9]
[1693834478869,27.78259247,19.602,19.586,98.9]
[1693834478870,98.9,19.593,19.586,98.9]
[1693834479065,98.9,19.593,19.586,99.35454546]
[1693834479269,98.9,19.593,19.586,98.9]
[1693834482269,98.9,19.593,19.584,0.45454546]
[1693834482270,98.9,19.589,19.583,20.7989]
[1693834482471,15.31,19.586,19.579,98.9]
[1693834482768,15.31,19.583,19.576,98.9]
[1693834486781,15.31,19.58,19.574,0.45454546]
[1693834487977,110.07,19.583,19.574,0.45454546]
[1693834498686,110.07,19.583,19.574,0.51454546]
[1693834499083,110.07,19.586,19.574,110.58454546]
[1693834499281,440.28,19.59,19.577,110.07]
[1693834499282,110.07,19.59,19.577,110.07]
[1693834499480,110.07,19.593,19.577,20.35406921]
[1693834499683,110.07,19.593,19.58,110.07]
[1693834500082,110.07,19.593,19.581,21.4592]
[1693834500480,110.07,19.593,19.58,110.07]
[1693834500685,125.39,19.596,19.584,110.07]
[1693834500886,110.07,19.596,19.584,110.07]
[1693834504282,110.07,19.599,19.587,110.07]
[1693834506990,15.32,19.596,19.585,110.07]
[1693834515494,110.07,19.599,19.587,110.07]
[1693834520196,110.13210363,19.605,19.593,110.07]
[1693834520403,0.06210363,19.605,19.595,110.07]
[1693834520905,110.13210363,19.605,19.596,21.624]
[1693834524807,110.07,19.605,19.596,21.624]
[1693834533211,15.31,19.607,19.596,21.624]
[1693834533612,0.06210357,19.605,19.596,21.624]
[1693834537919,0.06210357,19.605,19.598,98.81]
[1693834538515,98.81,19.606,19.598,98.81]
[1693834543018,98.81,19.606,19.596,21.624]
[1693834543225,98.81,19.607,19.599,98.81]
[1693834549130,0.06210357,19.605,19.599,98.81]
[1693834553130,0.06210357,19.605,19.601,98.81]
[1693834554130,15.31,19.607,19.601,98.81]
[1693834556035,98.81,19.605,19.597,98.81]
[1693834563141,98.81,19.604,19.596,120.434]
[1693834571248,15.31,19.602,19.596,21.624]
[1693834575956,15.31,19.602,19.595,98.81]
[1693834583162,98.81,19.601,19.593,140.67270872]
[1693834587163,98.81,19.601,19.593,140.21816326]
[1693834603070,15.31,19.599,19.593,41.40816326]
[1693834603375,15.31,19.599,19.592,98.81]
[1693834618488,98.81,19.6,19.592,98.81]
[1693834618687,98.81,19.603,19.595,98.81]
[1693834620185,98.81,19.606,19.598,98.81]
[1693834623089,98.81,19.607,19.599,98.81]
[1693834632691,98.81,19.605,19.597,98.81]
[1693834633090,98.81,19.603,19.595,98.81]
[1693834637091,98.81,19.606,19.597,98.81]
[1693834639595,0.06210351,19.605,19.597,98.81]
[1693834639996,0.06210351,19.605,19.598,20.1604]
[1693834643102,0.06210351,19.605,19.598,118.9704]
[1693834643302,98.81,19.607,19.598,118.9704]
[1693834646804,98.81,19.607,19.598,119.0304]
[1693834648096,31.80795794,19.612,19.601,98.81]
[1693834648097,98.81,19.609,19.601,98.81]
[1693834650806,98.81,19.61,19.602,98.81]
[1693834653112,98.81,19.611,19.603,98.81]
[1693834655211,0.06210344,19.605,19.603,98.81]
[1693834658812,98.81,19.611,19.603,98.81]
[1693834668618,0.06210344,19.605,19.603,98.81]
[1693834672225,98.81,19.611,19.603,98.81]
[1693834674221,98.81,19.609,19.601,98.81]
[1693834674624,98.81,19.606,19.597,98.81]
[1693834680631,98.81,19.602,19.594,98.81]
[1693834680930,98.81,19.602,19.595,0.45454546]
[1693834683032,98.81,19.601,19.595,0.45454546]
[1693834683235,98.81,19.601,19.594,0.45454546]
[1693834683732,98.81,19.598,19.589,98.81]
[1693834683931,15.31,19.607,19.58,0.45454546]
[1693834683932,98.81,19.595,19.587,98.81]
[1693834685336,98.81,19.592,19.583,98.81]
[1693834693135,98.81,19.592,19.585,98.81]
[1693834705647,10.2382,19.604,19.589,98.81]
[1693834705648,98.81,19.596,19.589,98.81]
[1693834705845,98.81,19.599,19.591,98.81]
[1693834706347,10.2382,19.604,19.586,23.20981182]
[1693834706348,98.81,19.601,19.593,98.81]
[1693834710747,98.81,19.6,19.592,98.81]
[1693834714770,15.31,19.599,19.592,98.81]
[1693834716154,98.81,19.603,19.595,98.81]
[1693834716457,101.8566929,19.611,19.602,98.81]
[1693834723064,3.0466929,19.611,19.604,98.81]
[1693834723265,98.81,19.61,19.601,98.81]
[1693834726267,98.81,19.61,19.601,139.12412544]
[1693834728663,0.06210338,19.605,19.601,139.12412544]
[1693834729569,98.81,19.61,19.601,139.12412544]
[1693834733068,31.80795794,19.612,19.603,98.81]
[1693834733264,98.81,19.611,19.603,98.81]
[1693834740178,98.81,19.616,19.609,98.81]
[1693834740373,98.81,19.62,19.612,98.81]
[1693834740771,15.3,19.62,19.613,98.81]
[1693834742271,98.81,19.624,19.616,98.81]
[1693834742475,98.81,19.624,19.617,0.45454546]
[1693834743074,15.3,19.625,19.618,98.81]
[1693834744373,15.3,19.625,19.609,0.45454546]
[1693834744574,30.79812913,19.627,19.621,98.81]
[1693834745168,98.81,19.628,19.621,98.81]
[1693834753280,98.81,19.63,19.622,98.81]
[1693834754278,98.81,19.632,19.625,98.81]
[1693834758785,98.81,19.632,19.627,0.75103594]
[1693834773092,15.29,19.63,19.623,98.81]
[1693834776100,98.81,19.628,19.62,98.81]
[1693834776395,98.81,19.625,19.618,98.81]
[1693834782100,15.29,19.622,19.616,98.81]
[1693834782300,15.29,19.622,19.617,0.45454546]
[1693834783200,98.81,19.622,19.617,0.45454546]
[1693834783403,98.81,19.622,19.616,0.45454546]
[1693834799614,98.81,19.621,19.616,0.45454546]
[1693834799815,98.81,19.621,19.614,0.45454546]
[1693834800416,98.81,19.623,19.616,98.81]
[1693834800915,98.81,19.623,19.616,99.26454546]
[1693834801111,98.81,19.623,19.616,98.81]
[1693834808718,98.81,19.626,19.619,98.81]
[1693834808918,0.06203369,19.627,19.622,98.81]
[1693834809324,0.06203369,19.627,19.623,0.45454546]
[1693834810124,98.81,19.629,19.623,0.45454546]
[1693834811723,98.81,19.632,19.625,98.81]
[1693834812128,98.81,19.632,19.625,99.26454546]
[1693834812431,98.81,19.632,19.625,98.81]
[1693834813224,26.35332988,19.641,19.622,98.81]
[1693834813225,15.29,19.628,19.622,98.81]
[1693834813426,15.29,19.628,19.613,20.67264546]
[1693834813427,98.81,19.627,19.619,98.81]
[1693834819230,98.87203369,19.627,19.619,98.81]
[1693834820633,0.06203369,19.627,19.622,98.81]
[1693834821233,0.06203369,19.627,19.613,20.2181]
[1693834821234,98.81,19.633,19.625,98.81]
[1693834821431,98.81,19.635,19.628,98.81]
[1693834822333,98.81,19.638,19.631,98.81]
[1693834823138,98.81,19.636,19.629,98.81]
[1693834828441,98.81,19.636,19.629,98.87]
[1693834831549,98.81,19.633,19.629,0.06]
[1693834832645,98.81,19.633,19.626,98.81]
[1693834833048,98.81,19.632,19.625,98.81]
[1693834833751,0.06203374,19.627,19.625,98.81]
[1693834838653,98.81,19.635,19.626,98.81]
[1693834838951,98.81,19.635,19.628,98.81]
[1693834845856,31.04399727,19.639,19.625,98.81]
[1693834845857,98.81,19.632,19.625,98.81]
[1693834846252,98.81,19.63,19.622,98.81]
[1693834849662,98.81,19.626,19.621,20.8458]
[1693834850960,15.28,19.625,19.618,98.81]
[1693834851161,15.28,19.622,19.615,98.81]
[1693834853159,15.28,19.62,19.613,98.81]
[1693834855362,98.81,19.618,19.61,19.9681]
[1693834857058,0.81810219,19.616,19.61,19.9681]
[1693834860669,15.29,19.615,19.61,19.9681]
[1693834862562,0.81810219,19.616,19.61,19.9681]
[1693834863067,0.81810219,19.616,19.61,118.7781]
[1693834872372,0.81810219,19.616,19.61,19.9681]
[1693834878173,15.29,19.615,19.59,0.45454546]
[1693834878372,98.81,19.608,19.601,98.81]
[1693834878580,98.81,19.605,19.598,98.81]
[1693834882874,15.29,19.613,19.595,109.77]
[1693834882875,109.77,19.608,19.595,109.77]
[1693834886985,15.29,19.607,19.595,109.77]
[1693834887174,109.77,19.606,19.593,150.48800101]
[1693834889885,109.77,19.61,19.597,109.77]
[1693834890276,109.77,19.613,19.6,109.77]
[1693834890884,109.77,19.613,19.601,21.5859]
[1693834891384,109.77,19.613,19.6,109.77]
[1693834891581,109.77,19.613,19.601,21.5859]
[1693834892187,109.77,19.613,19.6,109.77]
[1693834892388,109.77,19.613,19.601,21.5859]
[1693834892590,109.77,19.613,19.6,109.77]
[1693834892788,109.77,19.613,19.601,21.5859]
[1693834893183,109.77,19.613,19.6,109.77]
[1693834893384,109.77,19.613,19.601,21.5859]
[1693834893886,109.77,19.613,19.6,109.77]
[1693834894286,109.77,19.613,19.601,21.3053]
[1693834894684,109.77,19.613,19.6,151.18632652]
[1693834894879,109.77,19.613,19.601,21.3053]
[1693834895282,109.77,19.613,19.6,151.18632652]
[1693834895690,109.77,19.613,19.601,21.3053]
[1693834895882,109.77,19.613,19.6,151.18632652]
[1693834896083,109.77,19.613,19.601,21.3053]
[1693834896486,109.77,19.613,19.6,151.18632652]
[1693834896686,109.77,19.613,19.601,21.3053]
[1693834897186,109.77,19.613,19.6,151.18632652]
[1693834897386,109.77,19.613,19.601,21.1326]
[1693834898791,109.77,19.611,19.601,21.1326]
[1693834898992,109.77,19.611,19.598,109.77]
[1693834901588,109.77,19.604,19.592,110.22454546]
[1693834901793,109.77,19.604,19.593,0.45454546]
[1693834903196,15.3,19.602,19.593,0.45454546]
[1693834903397,15.3,19.602,19.592,0.45454546]
[1693834913103,98.85,19.6,19.592,99.30454546]
[1693834913302,98.85,19.6,19.593,0.45454546]
[1693834927407,98.85,19.602,19.594,98.85]
[1693834927613,98.85,19.604,19.596,98.85]
[1693834931716,98.85,19.599,19.591,140.40430902]
[1693834931917,500.0,19.607,19.591,140.40430902]
[1693834931918,98.85,19.595,19.591,41.55430902]
[1693834932109,98.85,19.595,19.587,98.85]
[1693834932815,98.85,19.595,19.587,140.38469387]
[1693834935410,98.85,19.595,19.587,98.85]
[1693834937021,98.85,19.592,19.585,98.85]
[1693834937218,98.85,19.592,19.585,139.29081632]
[1693834944226,98.85,19.593,19.586,98.85]
[1693834951428,98.85,19.596,19.589,98.85]
[1693834953130,98.85,19.598,19.59,98.85]
[1693834955731,10.2299,19.603,19.583,41.42448979]
[1693834955732,98.85,19.603,19.595,98.85]
[1693834955930,98.85,19.606,19.597,98.85]
[1693834958029,15.32,19.607,19.596,109.77]
[1693834963139,109.77,19.607,19.596,109.77]
[1693834967435,109.77,19.61,19.598,109.77]
[1693834967636,109.77,19.613,19.6,109.77]
[1693834969335,15.32,19.615,19.604,109.77]
[1693834969535,109.77,19.619,19.607,109.77]
[1693834970037,109.77,19.619,19.608,21.3268]
[1693834970737,109.77,19.619,19.607,109.77]
[1693834970937,109.77,19.619,19.608,21.3268]
[1693834971135,109.77,19.622,19.61,109.77]
[1693834971539,109.77,19.622,19.611,20.206]
[1693834982854,10.209,19.627,19.611,20.206]
[1693834983054,15.29,19.62,19.614,98.65]
[1693834983853,98.65,19.621,19.614,98.65]
[1693834985248,0.06203363,19.627,19.618,98.65]
[1693834985448,0.06203363,19.627,19.621,98.65]
[1693834986549,0.06203363,19.627,19.611,0.45454546]
[1693834986550,0.06203363,19.627,19.624,98.65]
[1693834986753,98.65,19.635,19.626,98.65]
[1693834987856,98.65,19.635,19.62,0.45454546]
[1693834988161,109.45,19.637,19.624,109.45]
[1693834989755,10.1804,19.638,19.626,109.45]
[1693834990156,109.45,19.639,19.626,109.45]
[1693834992663,109.45,19.637,19.624,109.45]
[1693834993160,15.29,19.633,19.622,109.45]
[1693834993356,15.29,19.633,19.623,0.45454546]
[1693834995056,109.45,19.637,19.625,109.45]
[1693834998957,0.06203363,19.627,19.625,109.45]
[1693834999260,109.45,19.637,19.625,109.45]
[1693835007471,109.45,19.637,19.625,109.51]
[1693835012875,10.1352,19.638,19.625,0.06]
[1693835013074,98.52,19.635,19.628,98.52]
[1693835018573,98.52,19.632,19.624,98.52]
[1693835018771,15.28,19.628,19.622,98.52]
[1693835022776,98.52,19.628,19.62,98.52]
[1693835023174,15.28,19.628,19.622,98.52]
[1693835029273,0.06203363,19.627,19.622,98.52]
[1693835034186,15.28,19.625,19.619,119.9392]
[1693835039995,0.70200522,19.624,19.619,119.9392]
[1693835043098,0.70200522,19.624,19.619,21.4192]
[1693835052304,98.52,19.628,19.621,98.52]
[1693835053003,98.52,19.627,19.62,0.81932588]
[1693835053203,51.32758751,19.637,19.62,0.81932588]
[1693835053204,98.52,19.625,19.62,0.81932588]
[1693835054003,98.52,19.625,19.619,21.4192]
[1693835054896,98.52,19.625,19.621,0.70064644]
[1693835058706,0.06204312,19.624,19.621,0.70064644]
[1693835063208,98.58204312,19.624,19.621,0.70064644]
[1693835063505,98.52,19.624,19.621,0.70064644]
[1693835067111,98.52,19.627,19.621,0.70064644]
[1693835073017,98.52,19.627,19.621,99.22064644]
[1693835074622,0.06204312,19.624,19.621,99.22064644]
[1693835075325,98.52,19.627,19.621,99.22064644]
[1693835083122,98.52,19.629,19.622,98.52]
[1693835084322,15.29,19.628,19.622,98.52]
[1693835085330,41.70351501,19.634,19.619,21.4192]
[1693835085331,98.52,19.625,19.619,21.4192]
[1693835087823,98.52,19.625,19.62,0.83444286]
[1693835089228,0.06204316,19.624,19.62,0.83444286]
[1693835093239,98.58204316,19.624,19.62,0.83444286]
[1693835094541,98.52,19.624,19.62,0.83444286]
[1693835103144,98.52,19.625,19.62,0.83444286]
[1693835103942,0.06204316,19.624,19.62,0.83444286]
[1693835104144,0.06204316,19.624,19.619,21.4192]
[1693835104841,0.06204316,19.624,19.62,0.80548176]
[1693835108634,98.52,19.625,19.62,0.80548176]
[1693835110142,51.32758751,19.637,19.614,0.45454546]
[1693835110342,98.52,19.621,19.614,21.30874546]
[1693835110546,98.52,19.621,19.615,0.45454546]
[1693835110748,98.52,19.621,19.614,0.45454546]
[1693835111439,99.26110979,19.624,19.616,98.52]
[1693835111645,98.52,19.624,19.616,98.52]
[1693835112644,0.74258239,19.622,19.616,98.52]
[1693835113145,98.52,19.621,19.614,98.97454546]
[1693835113344,98.52,19.621,19.615,0.45454546]
[1693835116645,98.52,19.621,19.614,98.52]
[1693835118149,98.52,19.619,19.613,0.45454546]
[1693835118746,98.52,19.619,19.612,139.47364237]
[1693835119048,98.52,19.619,19.616,0.75903135]
[1693835120149,99.31527645,19.619,19.616,0.75903135]
[1693835123145,98.52,19.617,19.612,40.95364237]
[1693835123349,98.52,19.615,19.607,98.52]
[1693835123944,0.79527645,19.619,19.607,98.52]
[1693835123945,0.79527645,19.619,19.607,500.0]
[1693835124150,55.93391237,19.63,19.607,500.0]
[1693835124151,55.93391237,19.63,19.615,98.52]
[1693835124445,98.52,19.624,19.615,98.52]
[1693835125844,0.73372492,19.621,19.615,98.52]
[1693835126245,0.73372492,19.621,19.616,20.234]
[1693835128760,0.73372492,19.621,19.618,98.52]
[1693835143269,0.73372492,19.621,19.619,98.52]
[1693835145180,0.73372492,19.621,19.619,98.58]
[1693835148673,0.73372492,19.621,19.619,98.52]
[1693835161391,0.73372492,19.621,19.62,98.52]
[1693835163091,0.73372492,19.621,19.618,98.52]
[1693835165885,15.29,19.62,19.615,98.52]
[1693835166085,15.29,19.62,19.612,39.80845643]
[1693835166290,98.52,19.619,19.611,20.7938]
[1693835166891,98.52,19.619,19.601,274.09927157]
[1693835167090,98.52,19.619,19.61,98.52]
[1693835171094,98.52,19.617,19.608,165.63039142]
[1693835171697,98.52,19.617,19.608,124.01979]
[1693835172395,98.52,19.617,19.608,98.52]
[1693835172596,98.52,19.617,19.601,21.94684546]
[1693835172597,98.52,19.611,19.602,98.52]
[1693835172797,98.52,19.609,19.6,98.52]
[1693835178503,98.52,19.609,19.593,20.2514]
[1693835178504,98.52,19.604,19.596,98.52]
[1693835183199,98.52,19.606,19.597,98.52]
[1693835191810,98.52,19.605,19.596,98.52]
[1693835196911,15.31,19.607,19.6,98.52]
[1693835200317,98.52,19.608,19.6,98.52]
[1693835203424,15.31,19.607,19.6,98.52]
[1693835207716,98.52,19.601,19.59,98.52]
[1693835208029,98.52,19.595,19.588,20.8488]
[1693835208325,98.52,19.595,19.587,98.52]
[1693835211222,98.52,19.592,19.585,98.52]
[1693835217432,98.52,19.589,19.582,41.27346938]
[1693835217631,98.52,19.589,19.581,98.52]
[1693835223035,15.32,19.586,19.58,63.12164052]
[1693835224732,15.32,19.583,19.58,21.9782]
[1693835233244,31.22931196,19.59,19.58,21.9782]
[1693835233245,98.52,19.582,19.58,21.9782]
[1693835233445,98.52,19.584,19.58,21.9782]
[1693835233640,98.52,19.584,19.577,98.52]
[1693835234143,98.52,19.588,19.58,98.52]
[1693835238150,98.52,19.585,19.577,98.52]
[1693835239850,98.52,19.582,19.575,21.8456]
[1693835240442,98.52,19.588,19.58,98.52]
[1693835251959,98.52,19.588,19.58,138.97329248]
[1693835252259,98.52,19.593,19.586,98.52]
[1693835253052,98.52,19.594,19.586,98.52]
[1693835254563,0.69653796,19.592,19.586,98.52]
[1693835265169,15.32,19.59,19.583,98.52]
[1693835270278,98.52,19.591,19.583,98.52]
[1693835272176,15.32,19.59,19.583,98.52]
[1693835293103,15.32,19.59,19.584,98.52]
[1693835293300,98.52,19.591,19.584,98.52]
[1693835303306,98.52,19.593,19.586,98.52]
[1693835304303,98.52,19.593,19.586,99.33388181]
[1693835307309,0.75378201,19.591,19.586,99.33388181]
[1693835319329,0.75378201,19.591,19.586,140.70939201]
[1693835322724,0.75378201,19.591,19.588,98.52]
[1693835322926,98.52,19.599,19.59,98.52]
[1693835323131,98.52,19.599,19.588,23.05847909]
[1693835323132,15.31,19.599,19.592,98.52]
[1693835329728,15.31,19.599,19.592,98.58]
[1693835329933,98.52,19.6,19.592,98.58]
[1693835330130,15.31,19.599,19.592,98.58]
[1693835336840,15.31,19.599,19.592,139.4416641]
[1693835343152,15.31,19.599,19.592,40.9216641]
[1693835345457,98.52,19.601,19.593,98.52]
[1693835353257,98.52,19.602,19.594,98.52]
[1693835354058,15.31,19.602,19.595,98.52]
[1693835357662,15.31,19.602,19.596,98.52]
[1693835358556,15.31,19.602,19.592,40.8616641]
[1693835358760,15.31,19.599,19.592,98.52]
[1693835360263,15.31,19.596,19.589,119.6907]
[1693835362265,15.31,19.596,19.589,98.52]
[1693835363165,98.52,19.595,19.587,98.52]
[1693835375579,98.52,19.592,19.585,98.52]
[1693835382888,0.82358702,19.59,19.585,98.52]
[1693835383185,0.82358702,19.59,19.587,0.83567244]
[1693835385383,99.34358702,19.59,19.582,98.52]
[1693835393185,98.52,19.588,19.58,98.52]
[1693835398993,29.57189982,19.595,19.583,98.52]
[1693835398994,15.32,19.59,19.583,98.52]
[1693835400597,98.52,19.588,19.58,98.52]
[1693835401494,15.32,19.583,19.579,21.2068]
[1693835401694,15.32,19.583,19.577,98.52]
[1693835402699,15.32,19.58,19.574,98.52]
[1693835403299,15.32,19.58,19.574,98.97454546]
[1693835407395,98.52,19.578,19.574,0.45454546]
[1693835407599,98.52,19.578,19.571,98.52]
[1693835409497,15.32,19.571,19.565,39.97957098]
[1693835409703,15.32,19.571,19.566,21.5838]
[1693835413105,98.52,19.573,19.566,21.5838]
[1693835413406,98.52,19.573,19.565,98.52]
[1693835423201,98.52,19.572,19.564,139.74227898]
[1693835423398,98.52,19.572,19.564,98.52]
[1693835426400,98.52,19.574,19.567,98.52]
[1693835433117,98.52,19.575,19.568,98.52]
[1693835442825,98.52,19.573,19.565,98.52]
[1693835443021,98.52,19.57,19.563,98.97454546]
[1693835443325,98.52,19.57,19.564,0.45454546]
[1693835445024,98.52,19.57,19.563,98.97454546]
[1693835445622,98.52,19.574,19.566,98.52]
[1693835446227,98.52,19.577,19.57,98.52]
[1693835449733,98.52,19.574,19.566,98.52]
[1693835453134,98.52,19.576,19.568,98.52]
[1693835459632,15.33,19.575,19.568,98.52]
[1693835461542,98.52,19.573,19.566,98.52]
[1693835461934,98.52,19.57,19.562,139.24012257]
[1693835462240,98.52,19.57,19.562,138.78557711]
[1693835462440,98.52,19.566,19.561,21.6813]
[1693835462640,98.52,19.566,19.558,98.52]
[1693835465146,15.33,19.565,19.558,98.52]
[1693835465740,98.52,19.563,19.556,98.52]
[1693835473154,98.52,19.564,19.557,98.52]
[1693835480757,98.52,19.559,19.555,40.40470106]
[1693835480955,98.52,19.559,19.551,98.52]
[1693835482155,98.52,19.556,19.549,98.52]
[1693835482455,15.33,19.565,19.539,0.45454546]
[1693835482656,98.52,19.554,19.546,98.52]
[1693835483059,98.52,19.556,19.548,98.52]
[1693835485656,98.52,19.558,19.551,98.52]
[1693835488957,98.52,19.561,19.554,98.52]
[1693835493163,98.52,19.562,19.555,98.52]
[1693835493767,98.52,19.564,19.557,98.52]
[1693835494769,98.52,19.568,19.56,98.52]
[1693835495969,98.52,19.571,19.563,98.52]
[1693835496370,98.52,19.571,19.564,0.45454546]
[1693835505267,98.52,19.571,19.564,98.97454546]
[1693835505766,98.52,19.571,19.564,120.83184546]
[1693835509067,98.52,19.574,19.567,98.52]
[1693835510477,15.34,19.573,19.567,98.52]
[1693835511779,98.52,19.574,19.567,98.52]
[1693835513185,98.52,19.575,19.568,98.52]
[1693835520494,98.52,19.577,19.569,98.52]
[1693835534703,98.52,19.579,19.572,98.52]
[1693835536804,15.33,19.575,19.569,98.52]
[1693835543003,15.33,19.575,19.564,22.31184546]
[1693835543205,98.52,19.575,19.567,98.52]
[1693835548005,15.33,19.571,19.564,120.3773]
[1693835548507,15.33,19.571,19.564,98.52]
[1693835548812,500.0,19.577,19.562,98.52]
[1693835548813,98.52,19.569,19.562,98.52]
[1693835556713,98.52,19.567,19.56,98.52]
[1693835563011,98.52,19.569,19.562,98.52]
[1693835575221,70.32587953,19.575,19.561,120.223]
[1693835575222,98.52,19.568,19.561,120.223]
[1693835581828,98.52,19.571,19.564,98.52]
[1693835582529,98.52,19.567,19.561,21.703]
[1693835601043,98.52,19.564,19.561,21.703]
[1693835601339,98.52,19.564,19.557,98.52]
[1693835608145,0.69645188,19.562,19.557,98.52]
[1693835613257,0.69645188,19.562,19.558,98.52]
[1693835624967,98.52,19.561,19.555,296.64662817]
[1693835625166,98.52,19.561,19.555,21.776]
[1693835633172,99.21645188,19.562,19.555,120.296]
[1693835643176,98.52,19.561,19.555,21.776]
[1693835665896,0.69645188,19.562,19.556,98.52]
[1693835691908,0.69645188,19.562,19.556,140.39321063]
[1693835701608,98.52,19.561,19.556,41.87321063]
[1693835701809,98.52,19.561,19.555,21.776]
[1693835706719,98.52,19.558,19.555,21.776]
[1693835710317,98.52,19.561,19.555,21.776]
[1693835715222,99.21645188,19.562,19.555,120.296]
[1693835723228,15.34,19.559,19.555,21.776]
[1693835723828,98.52,19.56,19.555,21.776]
[1693835730837,0.69645188,19.562,19.555,21.776]
[1693835753047,99.21645188,19.562,19.555,21.776]
[1693835773159,0.69645188,19.562,19.555,120.296]
[1693835791476,15.34,19.556,19.551,0.06227538]
[1693835793179,98.52,19.556,19.551,0.06227538]
[1693835795681,98.52,19.553,19.551,0.06227538]
[1693835795871,98.52,19.553,19.546,98.52]
[1693835798574,98.52,19.548,19.544,19.8694]
[1693835798780,500.0,19.557,19.538,98.52]
[1693835798781,15.34,19.545,19.538,98.52]
[1693835799281,47.27811086,19.551,19.529,34.163188]
[1693835799282,98.52,19.543,19.535,98.52]
[1693835799475,98.52,19.543,19.535,140.12327198]
[1693835801180,98.52,19.543,19.535,98.52]
[1693835803078,98.52,19.541,19.534,98.52]
[1693835806882,15.34,19.54,19.534,98.52]
[1693835807090,98.52,19.538,19.53,98.52]
[1693835808890,98.52,19.538,19.53,139.66168797]
[1693835810590,98.52,19.538,19.532,0.82630126]
[1693835810981,0.75854861,19.536,19.532,0.82630126]
[1693835813295,0.75854861,19.536,19.532,99.34630126]
[1693835816591,0.22727272,19.55,19.535,98.52]
[1693835816791,98.52,19.543,19.535,98.52]
[1693835822397,98.52,19.543,19.536,0.06232319]
[1693835823593,15.35,19.538,19.536,0.06232319]
[1693835823802,15.35,19.538,19.531,0.45454546]
[1693835823803,98.52,19.537,19.531,20.9663]
[1693835831607,15.35,19.534,19.527,98.52]
[1693835831810,15.35,19.531,19.524,98.52]
[1693835832014,98.52,19.529,19.522,98.52]
[1693835832309,98.52,19.529,19.523,9.40880668]
[1693835833207,15.35,19.528,19.523,9.40880668]
[1693835833406,98.52,19.528,19.52,20.1627]
[1693835834217,98.52,19.526,19.52,20.1627]
[1693835834416,15.35,19.525,19.518,98.52]
[1693835834818,98.52,19.523,19.515,98.52]
[1693835835019,98.52,19.523,19.516,9.4115442]
[1693835841321,15.35,19.522,19.516,9.4115442]
[1693835842419,98.52,19.523,19.516,9.4115442]